[Event "Titled Tuesday Blitz January 03 Early 2023"]
[White "Ivanova, Karina"]
[Black "Ocelak, Jakub"]
[WhiteFideId "24139750"]
[BlackFideId "23707933"]
[WhiteElo "2085"]
[BlackElo "2198"]
[Result "1/2-1/2"]
[Round "05"]
[TimeControl "180+2"]
[Date "2023.01.03"]
[WhiteClock "0:00:34"]
[BlackClock "0:00:04"]

1. Nf3 {[%clk 0:02:58]}  c5 {[%clk 0:02:57]} 2. c4 {[%clk 0:02:58]}  Nf6 {[%clk 0:02:54]} 3. d4 {[%clk 0:02:55]}  cxd4 {[%clk 0:02:54]} 4. Nxd4 {[%clk 0:02:55]}  g6 {[%clk 0:02:54]} 5. g3 {[%clk 0:02:55]}  Bg7 {[%clk 0:02:54]} 6. Bg2 {[%clk 0:02:55]}  O-O {[%clk 0:02:54]} 7. Nc3 {[%clk 0:02:55]}  Qc7 {[%clk 0:02:50]} 8. b3 {[%clk 0:02:53]}  d5 {[%clk 0:02:50]} 9. Nxd5 {[%clk 0:02:44]}  Nxd5 {[%clk 0:02:39]} 10. Bxd5 {[%clk 0:02:44]}  Rd8 {[%clk 0:01:41]} 11. Bg5 {[%clk 0:02:24]}  Qe5 {[%clk 0:01:26]} 12. Be3 {[%clk 0:01:48]}  e6 {[%clk 0:01:20]} 13. Bg2 {[%clk 0:01:38]}  Rxd4 {[%clk 0:01:03]} 14. Bxd4 {[%clk 0:01:34]}  Qxd4 {[%clk 0:01:04]} 15. Qxd4 {[%clk 0:01:34]}  Bxd4 {[%clk 0:01:05]} 16. Rd1 {[%clk 0:01:34]}  Bc3+ {[%clk 0:01:03]} 17. Kf1 {[%clk 0:01:34]}  Nd7 {[%clk 0:00:59]} 18. Bf3 {[%clk 0:01:28]}  Bf6 {[%clk 0:00:55]} 19. Kg2 {[%clk 0:01:26]}  Ne5 {[%clk 0:00:51]} 20. Be4 {[%clk 0:01:23]}  Rb8 {[%clk 0:00:48]} 21. h4 {[%clk 0:01:18]}  h5 {[%clk 0:00:47]} 22. e3 {[%clk 0:01:15]}  b6 {[%clk 0:00:44]} 23. f4 {[%clk 0:01:12]}  Ng4 {[%clk 0:00:43]} 24. Kf3 {[%clk 0:01:12]}  Be7 {[%clk 0:00:39]} 25. Bc6 {[%clk 0:01:07]}  Bc5 {[%clk 0:00:38]} 26. Rd8+ {[%clk 0:01:04]}  Kg7 {[%clk 0:00:36]} 27. Re1 {[%clk 0:01:00]}  e5 {[%clk 0:00:30]} 28. e4 {[%clk 0:00:51]}  Nh2+ {[%clk 0:00:20]} 29. Kg2 {[%clk 0:00:47]}  Ng4 {[%clk 0:00:13]} 30. Bd7 {[%clk 0:00:43]}  Bxd7 {[%clk 0:00:11]} 31. Rxb8 {[%clk 0:00:43]}  Bc6 {[%clk 0:00:10]} 32. Rc8 {[%clk 0:00:39]}  Bb7 {[%clk 0:00:08]} 33. Rc7 {[%clk 0:00:36]}  Ba8 {[%clk 0:00:06]} 34. Rxa7 {[%clk 0:00:35]}  Bc6 {[%clk 0:00:06]} 35. Rc7 {[%clk 0:00:35]}  Ba8 {[%clk 0:00:06]} 36. Rc8 {[%clk 0:00:34]}  Bb7 {[%clk 0:00:06]} 37. Rc7 {[%clk 0:00:34]}  Ba8 {[%clk 0:00:05]} 38. Rc8 {[%clk 0:00:34]}  Bb7 {[%clk 0:00:05]} 39. Rc7 {[%clk 0:00:34]}  Ba8 {[%clk 0:00:04]} 1/2-1/2


[Site "https://www.chess.com"]

[Event "Titled Tuesday Blitz January 03 Early 2023"]
[White "Van den Dikkenberg, Erik"]
[Black "Johnson, Ben"]
[WhiteFideId "1005880"]
[BlackFideId "2010917"]
[WhiteElo "2091"]
[BlackElo "1961"]
[Result "1-0"]
[Round "05"]
[TimeControl "180+2"]
[Date "2023.01.03"]
[WhiteClock "0:00:38"]
[BlackClock "0:00:01"]

1. e4 {[%clk 0:03:00]}  c5 {[%clk 0:02:52]} 2. Nc3 {[%clk 0:02:58]}  Nc6 {[%clk 0:02:52]} 3. f4 {[%clk 0:02:57]}  g6 {[%clk 0:02:52]} 4. Nf3 {[%clk 0:02:55]}  Bg7 {[%clk 0:02:52]} 5. Bb5 {[%clk 0:02:54]}  Nd4 {[%clk 0:02:52]} 6. O-O {[%clk 0:02:54]}  a6 {[%clk 0:02:52]} 7. Bc4 {[%clk 0:02:52]}  e6 {[%clk 0:02:50]} 8. a4 {[%clk 0:02:52]}  b6 {[%clk 0:02:38]} 9. d3 {[%clk 0:02:51]}  Ne7 {[%clk 0:02:38]} 10. Nxd4 {[%clk 0:02:48]}  cxd4 {[%clk 0:02:37]} 11. Ne2 {[%clk 0:02:48]}  O-O {[%clk 0:02:33]} 12. Bb3 {[%clk 0:02:48]}  d5 {[%clk 0:02:30]} 13. e5 {[%clk 0:02:46]}  Nc6 {[%clk 0:02:20]} 14. Qe1 {[%clk 0:02:45]}  f6 {[%clk 0:02:15]} 15. exf6 {[%clk 0:02:43]}  Bxf6 {[%clk 0:02:11]} 16. Qg3 {[%clk 0:02:38]}  Kh8 {[%clk 0:01:55]} 17. h3 {[%clk 0:02:28]}  Bd7 {[%clk 0:01:52]} 18. Bd2 {[%clk 0:02:25]}  Na5 {[%clk 0:01:38]} 19. Bxa5 {[%clk 0:02:23]}  bxa5 {[%clk 0:01:39]} 20. f5 {[%clk 0:02:18]}  gxf5 {[%clk 0:01:32]} 21. Nf4 {[%clk 0:02:18]}  Rg8 {[%clk 0:01:13]} 22. Qf3 {[%clk 0:02:17]}  Qc7 {[%clk 0:00:49]} 23. Rae1 {[%clk 0:02:11]}  Rae8 {[%clk 0:00:48]} 24. Kh1 {[%clk 0:02:08]}  Re7 {[%clk 0:00:39]} 25. Re2 {[%clk 0:01:55]}  Bh4 {[%clk 0:00:34]} 26. Qh5 {[%clk 0:01:47]}  Bg3 {[%clk 0:00:30]} 27. Nxd5 {[%clk 0:01:47]}  Be8 {[%clk 0:00:20]} 28. Qxe8 {[%clk 0:01:02]}  Rgxe8 {[%clk 0:00:18]} 29. Nxc7 {[%clk 0:01:01]}  Rxc7 {[%clk 0:00:17]} 30. Rf3 {[%clk 0:00:57]}  Bh4 {[%clk 0:00:13]} 31. Rxf5 {[%clk 0:00:56]}  exf5 {[%clk 0:00:06]} 32. Rxe8+ {[%clk 0:00:55]}  Kg7 {[%clk 0:00:06]} 33. Re5 {[%clk 0:00:53]}  Kf6 {[%clk 0:00:05]} 34. Rxa5 {[%clk 0:00:52]}  Re7 {[%clk 0:00:05]} 35. Rxa6+ {[%clk 0:00:52]}  Kg5 {[%clk 0:00:05]} 36. Re6 {[%clk 0:00:51]}  Rxe6 {[%clk 0:00:02]} 37. Bxe6 {[%clk 0:00:51]}  Be1 {[%clk 0:00:02]} 38. Kg1 {[%clk 0:00:45]}  Bd2 {[%clk 0:00:01]} 39. Kf2 {[%clk 0:00:44]}  h6 {[%clk 0:00:02]} 40. Kf3 {[%clk 0:00:43]}  f4 {[%clk 0:00:02]} 41. Ke4 {[%clk 0:00:39]}  h5 {[%clk 0:00:02]} 42. Kxd4 {[%clk 0:00:39]}  h4 {[%clk 0:00:01]} 43. Ke4 {[%clk 0:00:38]} 1-0


[Site "https://www.chess.com"]

[Event "Titled Tuesday Blitz January 03 Early 2023"]
[White "Blindsplieler"]
[Black "monkins"]
[WhiteElo "2071"]
[BlackElo "2242"]
[Result "1-0"]
[Round "05"]
[TimeControl "180+2"]
[Date "2023.01.03"]
[WhiteClock "0:00:49"]
[BlackClock "0:00:01"]

1. d4 {[%clk 0:02:55]}  Nf6 {[%clk 0:02:54]} 2. c4 {[%clk 0:02:54]}  c5 {[%clk 0:02:54]} 3. d5 {[%clk 0:02:53]}  b5 {[%clk 0:02:55]} 4. cxb5 {[%clk 0:02:53]}  a6 {[%clk 0:02:55]} 5. bxa6 {[%clk 0:02:50]}  Bxa6 {[%clk 0:02:56]} 6. Nc3 {[%clk 0:02:49]}  g6 {[%clk 0:02:55]} 7. e4 {[%clk 0:02:49]}  Bxf1 {[%clk 0:02:55]} 8. Kxf1 {[%clk 0:02:50]}  d6 {[%clk 0:02:56]} 9. Nf3 {[%clk 0:02:50]}  Bg7 {[%clk 0:02:56]} 10. g3 {[%clk 0:02:51]}  O-O {[%clk 0:02:56]} 11. Kg2 {[%clk 0:02:51]}  Na6 {[%clk 0:02:56]} 12. a4 {[%clk 0:02:48]}  Qd7 {[%clk 0:02:49]} 13. Qc2 {[%clk 0:02:46]}  Rfc8 {[%clk 0:02:48]} 14. Ra3 {[%clk 0:02:41]}  Nb4 {[%clk 0:02:48]} 15. Qe2 {[%clk 0:02:38]}  c4 {[%clk 0:02:46]} 16. Nb5 {[%clk 0:02:34]}  Nd3 {[%clk 0:02:36]} 17. Nfd4 {[%clk 0:02:28]}  Ng4 {[%clk 0:02:08]} 18. Be3 {[%clk 0:02:15]}  Nxe3+ {[%clk 0:02:05]} 19. fxe3 {[%clk 0:02:12]}  Nc5 {[%clk 0:01:52]} 20. Rc1 {[%clk 0:01:48]}  Nxe4 {[%clk 0:01:14]} 21. Rxc4 {[%clk 0:01:47]}  Nf6 {[%clk 0:00:54]} 22. e4 {[%clk 0:01:39]}  Rxc4 {[%clk 0:00:52]} 23. Qxc4 {[%clk 0:01:36]}  Nxe4 {[%clk 0:00:53]} 24. b3 {[%clk 0:01:23]}  h5 {[%clk 0:00:20]} 25. Ra2 {[%clk 0:01:19]}  h4 {[%clk 0:00:19]} 26. Re2 {[%clk 0:01:13]}  h3+ {[%clk 0:00:18]} 27. Kg1 {[%clk 0:01:07]}  Ng5 {[%clk 0:00:15]} 28. Qc6 {[%clk 0:01:01]}  Rd8 {[%clk 0:00:09]} 29. Qxd7 {[%clk 0:01:00]}  Rxd7 {[%clk 0:00:10]} 30. a5 {[%clk 0:00:57]}  Bxd4+ {[%clk 0:00:05]} 31. Nxd4 {[%clk 0:00:56]}  Ra7 {[%clk 0:00:05]} 32. Nc6 {[%clk 0:00:56]}  Rb7 {[%clk 0:00:03]} 33. a6 {[%clk 0:00:54]}  Rxb3 {[%clk 0:00:03]} 34. a7 {[%clk 0:00:51]}  Ra3 {[%clk 0:00:01]} 35. Rb2 {[%clk 0:00:49]} 1-0


[Site "https://www.chess.com"]

[Event "Titled Tuesday Blitz January 03 Early 2023"]
[White "Feng, Maggie"]
[Black "Flis, Pawel"]
[WhiteFideId "2078090"]
[BlackFideId "1112864"]
[WhiteElo "2138"]
[BlackElo "1879"]
[Result "1-0"]
[Round "05"]
[TimeControl "180+2"]
[Date "2023.01.03"]
[WhiteClock "0:00:08"]
[BlackClock "0:00:01"]

1. Nf3 {[%clk 0:03:00]}  Nf6 {[%clk 0:02:58]} 2. g3 {[%clk 0:03:00]}  g6 {[%clk 0:02:58]} 3. b3 {[%clk 0:03:00]}  Bg7 {[%clk 0:02:58]} 4. Bb2 {[%clk 0:03:01]}  O-O {[%clk 0:02:59]} 5. Bg2 {[%clk 0:03:00]}  c5 {[%clk 0:02:59]} 6. c4 {[%clk 0:02:59]}  d5 {[%clk 0:02:57]} 7. cxd5 {[%clk 0:03:00]}  Nxd5 {[%clk 0:02:57]} 8. Bxg7 {[%clk 0:02:59]}  Kxg7 {[%clk 0:02:58]} 9. O-O {[%clk 0:02:58]}  Nc6 {[%clk 0:02:56]} 10. d4 {[%clk 0:02:58]}  Nxd4 {[%clk 0:02:39]} 11. Nxd4 {[%clk 0:02:59]}  cxd4 {[%clk 0:02:39]} 12. Qxd4+ {[%clk 0:02:59]}  Nf6 {[%clk 0:02:39]} 13. Qe5 {[%clk 0:02:59]}  Qd6 {[%clk 0:02:31]} 14. Qxd6 {[%clk 0:02:54]}  exd6 {[%clk 0:02:32]} 15. Rd1 {[%clk 0:02:51]}  Rd8 {[%clk 0:02:26]} 16. Nc3 {[%clk 0:02:51]}  a6 {[%clk 0:02:14]} 17. Rac1 {[%clk 0:02:48]}  Be6 {[%clk 0:02:08]} 18. Bxb7 {[%clk 0:02:47]}  Ra7 {[%clk 0:02:06]} 19. Bf3 {[%clk 0:02:47]}  d5 {[%clk 0:02:06]} 20. Na4 {[%clk 0:02:32]}  Rdd7 {[%clk 0:01:54]} 21. Rc6 {[%clk 0:02:09]}  Rdc7 {[%clk 0:01:44]} 22. Rcc1 {[%clk 0:01:29]}  Ne4 {[%clk 0:01:24]} 23. Kg2 {[%clk 0:01:11]}  Nf6 {[%clk 0:01:09]} 24. Nb6 {[%clk 0:00:57]}  Rab7 {[%clk 0:00:49]} 25. Rxc7 {[%clk 0:00:53]}  Rxc7 {[%clk 0:00:48]} 26. Bxd5 {[%clk 0:00:33]}  Nxd5 {[%clk 0:00:44]} 27. Nxd5 {[%clk 0:00:33]}  Rc2 {[%clk 0:00:39]} 28. Nb4 {[%clk 0:00:20]}  Rxe2 {[%clk 0:00:36]} 29. Nxa6 {[%clk 0:00:19]}  Rxa2 {[%clk 0:00:36]} 30. Nc5 {[%clk 0:00:19]}  Rb2 {[%clk 0:00:24]} 31. Rd3 {[%clk 0:00:16]}  Bf5 {[%clk 0:00:21]} 32. Rc3 {[%clk 0:00:15]}  Rc2 {[%clk 0:00:19]} 33. Rxc2 {[%clk 0:00:15]}  Bxc2 {[%clk 0:00:19]} 34. b4 {[%clk 0:00:15]}  Kf8 {[%clk 0:00:13]} 35. Kf3 {[%clk 0:00:13]}  Ke7 {[%clk 0:00:13]} 36. Kf4 {[%clk 0:00:13]}  Kd6 {[%clk 0:00:13]} 37. Kg5 {[%clk 0:00:12]}  Kc6 {[%clk 0:00:05]} 38. Kh6 {[%clk 0:00:12]}  Kb5 {[%clk 0:00:05]} 39. Kxh7 {[%clk 0:00:12]}  Kxb4 {[%clk 0:00:04]} 40. Nd7 {[%clk 0:00:13]}  Kc4 {[%clk 0:00:02]} 41. Kg7 {[%clk 0:00:13]}  Kd3 {[%clk 0:00:02]} 42. Kxf7 {[%clk 0:00:13]}  Ke2 {[%clk 0:00:02]} 43. f4 {[%clk 0:00:11]}  Kf3 {[%clk 0:00:02]} 44. Ne5+ {[%clk 0:00:10]}  Kg2 {[%clk 0:00:01]} 45. Nxg6 {[%clk 0:00:09]}  Kxh2 {[%clk 0:00:02]} 46. g4 {[%clk 0:00:10]}  Kg3 {[%clk 0:00:01]} 47. g5 {[%clk 0:00:10]}  Kg4 {[%clk 0:00:01]} 48. Kf6 {[%clk 0:00:08]} 1-0


[Site "https://www.chess.com"]

[Event "Titled Tuesday Blitz January 03 Early 2023"]
[White "Carlsen, Magnus"]
[Black "Xiong, Jeffery"]
[WhiteFideId "1503014"]
[BlackFideId "2047640"]
[WhiteElo "2853"]
[BlackElo "2692"]
[Result "1-0"]
[Round "06"]
[TimeControl "180+2"]
[Date "2023.01.03"]
[WhiteClock "0:00:13"]
[BlackClock "0:00:04"]

1. e4 {[%clk 0:03:00]}  c5 {[%clk 0:02:50]} 2. a3 {[%clk 0:02:57]}  g6 {[%clk 0:02:49]} 3. h4 {[%clk 0:02:55]}  d5 {[%clk 0:02:42]} 4. h5 {[%clk 0:02:54]}  Bg7 {[%clk 0:02:41]} 5. exd5 {[%clk 0:02:33]}  Qxd5 {[%clk 0:02:41]} 6. Nc3 {[%clk 0:02:33]}  Qd8 {[%clk 0:02:41]} 7. Bc4 {[%clk 0:02:28]}  Nc6 {[%clk 0:02:39]} 8. d3 {[%clk 0:02:28]}  Nd4 {[%clk 0:02:32]} 9. Nf3 {[%clk 0:02:24]}  gxh5 {[%clk 0:02:10]} 10. Nxd4 {[%clk 0:02:18]}  cxd4 {[%clk 0:02:07]} 11. Qxh5 {[%clk 0:02:17]}  e6 {[%clk 0:02:03]} 12. Ne4 {[%clk 0:02:13]}  Nf6 {[%clk 0:01:27]} 13. Qg5 {[%clk 0:02:10]}  Rg8 {[%clk 0:01:17]} 14. Bb5+ {[%clk 0:02:04]}  Kf8 {[%clk 0:01:17]} 15. Rxh7 {[%clk 0:02:00]}  Qe7 {[%clk 0:00:59]} 16. Rxg7 {[%clk 0:01:46]}  Rxg7 {[%clk 0:01:00]} 17. Qxf6 {[%clk 0:01:46]}  Qxf6 {[%clk 0:01:01]} 18. Nxf6 {[%clk 0:01:47]}  Rxg2 {[%clk 0:01:01]} 19. Kf1 {[%clk 0:01:41]}  Rg6 {[%clk 0:01:01]} 20. Bg5 {[%clk 0:01:36]}  Ke7 {[%clk 0:00:37]} 21. f4 {[%clk 0:00:35]}  Rxf6 {[%clk 0:00:37]} 22. Ke2 {[%clk 0:00:35]}  a6 {[%clk 0:00:38]} 23. Ba4 {[%clk 0:00:30]}  b5 {[%clk 0:00:38]} 24. Rh1 {[%clk 0:00:30]}  bxa4 {[%clk 0:00:10]} 25. Rh6 {[%clk 0:00:29]}  Bb7 {[%clk 0:00:10]} 26. Bxf6+ {[%clk 0:00:30]}  Kd6 {[%clk 0:00:11]} 27. Rh7 {[%clk 0:00:22]}  Rg8 {[%clk 0:00:11]} 28. Bxd4 {[%clk 0:00:19]}  Rg2+ {[%clk 0:00:12]} 29. Bf2 {[%clk 0:00:13]}  Ke7 {[%clk 0:00:10]} 30. c4 {[%clk 0:00:13]}  Bc6 {[%clk 0:00:06]} 31. Ke3 {[%clk 0:00:13]}  Rg8 {[%clk 0:00:06]} 32. Bh4+ {[%clk 0:00:12]}  Ke8 {[%clk 0:00:07]} 33. Bf6 {[%clk 0:00:13]}  Rg6 {[%clk 0:00:05]} 34. Be5 {[%clk 0:00:13]}  f6 {[%clk 0:00:05]} 35. Bd6 {[%clk 0:00:13]}  Rg3+ {[%clk 0:00:05]} 36. Kd4 {[%clk 0:00:13]}  Rg6 {[%clk 0:00:02]} 37. Re7+ {[%clk 0:00:13]}  Kd8 {[%clk 0:00:03]} 38. Rxe6 {[%clk 0:00:13]}  Kd7 {[%clk 0:00:03]} 39. f5 {[%clk 0:00:13]}  Rg4+ {[%clk 0:00:04]} 40. Kc5 {[%clk 0:00:13]} 1-0


[Site "https://www.chess.com"]

[Event "Titled Tuesday Blitz January 03 Early 2023"]
[White "Vokhidov, Shamsiddin"]
[Black "Duda, Jan-Krzysztof"]
[WhiteFideId "14204223"]
[BlackFideId "1170546"]
[WhiteElo "2586"]
[BlackElo "2724"]
[Result "0-1"]
[Round "06"]
[TimeControl "180+2"]
[Date "2023.01.03"]
[WhiteClock "0:00:06"]
[BlackClock "0:00:06"]

1. e4 {[%clk 0:03:00]}  c5 {[%clk 0:03:00]} 2. Nf3 {[%clk 0:03:01]}  d6 {[%clk 0:03:01]} 3. Bb5+ {[%clk 0:03:01]}  Bd7 {[%clk 0:03:00]} 4. Bxd7+ {[%clk 0:03:01]}  Qxd7 {[%clk 0:03:01]} 5. c4 {[%clk 0:03:01]}  Nf6 {[%clk 0:03:00]} 6. Nc3 {[%clk 0:02:58]}  g6 {[%clk 0:03:00]} 7. d4 {[%clk 0:02:58]}  cxd4 {[%clk 0:03:00]} 8. Nxd4 {[%clk 0:02:59]}  Bg7 {[%clk 0:03:01]} 9. h3 {[%clk 0:02:59]}  O-O {[%clk 0:02:57]} 10. O-O {[%clk 0:02:59]}  Rc8 {[%clk 0:02:54]} 11. b3 {[%clk 0:02:59]}  d5 {[%clk 0:02:25]} 12. exd5 {[%clk 0:03:00]}  Nxd5 {[%clk 0:02:22]} 13. Nxd5 {[%clk 0:03:01]}  e6 {[%clk 0:02:23]} 14. Bh6 {[%clk 0:03:01]}  exd5 {[%clk 0:02:23]} 15. Bxg7 {[%clk 0:03:02]}  Kxg7 {[%clk 0:02:23]} 16. cxd5 {[%clk 0:03:03]}  Qxd5 {[%clk 0:02:21]} 17. Nf3 {[%clk 0:03:03]}  Qxd1 {[%clk 0:02:13]} 18. Rfxd1 {[%clk 0:03:04]}  a5 {[%clk 0:02:07]} 19. Rd5 {[%clk 0:02:36]}  a4 {[%clk 0:02:02]} 20. Re1 {[%clk 0:02:35]}  a3 {[%clk 0:01:59]} 21. Re7 {[%clk 0:02:28]}  b6 {[%clk 0:01:40]} 22. Ng5 {[%clk 0:02:26]}  Ra5 {[%clk 0:01:19]} 23. Rxf7+ {[%clk 0:02:19]}  Kg8 {[%clk 0:01:18]} 24. Rxa5 {[%clk 0:02:16]}  bxa5 {[%clk 0:01:19]} 25. Rb7 {[%clk 0:01:49]}  Rc1+ {[%clk 0:00:41]} 26. Kh2 {[%clk 0:01:48]}  Nc6 {[%clk 0:00:42]} 27. Nxh7 {[%clk 0:01:08]}  Nb4 {[%clk 0:00:40]} 28. Nf6+ {[%clk 0:01:06]}  Kf8 {[%clk 0:00:40]} 29. Nd7+ {[%clk 0:00:59]}  Ke8 {[%clk 0:00:40]} 30. Ne5 {[%clk 0:00:53]}  Nxa2 {[%clk 0:00:16]} 31. Ra7 {[%clk 0:00:52]}  Nb4 {[%clk 0:00:15]} 32. Rxa5 {[%clk 0:00:45]}  a2 {[%clk 0:00:15]} 33. Nd3 {[%clk 0:00:46]}  Nxd3 {[%clk 0:00:12]} 34. Rxa2 {[%clk 0:00:46]}  Rb1 {[%clk 0:00:13]} 35. Kg3 {[%clk 0:00:34]}  Rxb3 {[%clk 0:00:12]} 36. Re2+ {[%clk 0:00:35]}  Kf7 {[%clk 0:00:07]} 37. Re3 {[%clk 0:00:34]}  Kf6 {[%clk 0:00:07]} 38. h4 {[%clk 0:00:23]}  Rc3 {[%clk 0:00:07]} 39. f3 {[%clk 0:00:21]}  Kf5 {[%clk 0:00:05]} 40. Kh2 {[%clk 0:00:15]}  Kf4 {[%clk 0:00:05]} 41. Re4+ {[%clk 0:00:14]}  Kf5 {[%clk 0:00:05]} 42. Re3 {[%clk 0:00:14]}  Rb3 {[%clk 0:00:06]} 43. Kg3 {[%clk 0:00:14]}  Nc5 {[%clk 0:00:05]} 44. Rxb3 {[%clk 0:00:07]}  Nxb3 {[%clk 0:00:06]} 45. Kf2 {[%clk 0:00:07]}  Nd4 {[%clk 0:00:04]} 46. Ke3 {[%clk 0:00:06]}  Ne6 {[%clk 0:00:03]} 47. g4+ {[%clk 0:00:05]}  Ke5 {[%clk 0:00:04]} 48. h5 {[%clk 0:00:03]}  g5 {[%clk 0:00:04]} 49. Kd3 {[%clk 0:00:02]}  Kf4 {[%clk 0:00:03]} 50. Ke2 {[%clk 0:00:01]}  Nd4+ {[%clk 0:00:01]} 51. Kf2 {[%clk 0:00:02]}  Nxf3 {[%clk 0:00:02]} 52. h6 {[%clk 0:00:02]}  Ne5 {[%clk 0:00:03]} 53. h7 {[%clk 0:00:02]}  Ng6 {[%clk 0:00:04]} 54. Kg2 {[%clk 0:00:03]}  Kxg4 {[%clk 0:00:04]} 55. Kh2 {[%clk 0:00:04]}  Kh4 {[%clk 0:00:04]} 56. Kg2 {[%clk 0:00:04]}  Nh8 {[%clk 0:00:04]} 57. Kh2 {[%clk 0:00:05]}  Nf7 {[%clk 0:00:05]} 58. Kg2 {[%clk 0:00:05]}  Kh5 {[%clk 0:00:05]} 59. Kg3 {[%clk 0:00:06]}  Kg6 {[%clk 0:00:06]} 60. Kg4 {[%clk 0:00:06]}  Nh6+ {[%clk 0:00:06]} 0-1


[Site "https://www.chess.com"]

[Event "Titled Tuesday Blitz January 03 Early 2023"]
[White "Naroditsky, Daniel"]
[Black "Tang, Andrew"]
[WhiteFideId "2026961"]
[BlackFideId "2059630"]
[WhiteElo "2618"]
[BlackElo "2523"]
[Result "1/2-1/2"]
[Round "06"]
[TimeControl "180+2"]
[Date "2023.01.03"]
[WhiteClock "0:02:37"]
[BlackClock "0:02:44"]

1. e4 {[%clk 0:03:00]}  e5 {[%clk 0:03:00]} 2. Nf3 {[%clk 0:03:01]}  Nc6 {[%clk 0:03:00]} 3. Bb5 {[%clk 0:03:01]}  g6 {[%clk 0:02:43]} 4. c3 {[%clk 0:02:53]}  a6 {[%clk 0:02:43]} 5. Bxc6 {[%clk 0:02:51]}  dxc6 {[%clk 0:02:44]} 6. d4 {[%clk 0:02:51]}  exd4 {[%clk 0:02:44]} 7. cxd4 {[%clk 0:02:51]}  Bg7 {[%clk 0:02:45]} 8. h3 {[%clk 0:02:45]}  Ne7 {[%clk 0:02:43]} 9. Nc3 {[%clk 0:02:45]}  O-O {[%clk 0:02:43]} 10. O-O {[%clk 0:02:45]}  h6 {[%clk 0:02:43]} 11. Bf4 {[%clk 0:02:38]}  g5 {[%clk 0:02:43]} 12. Be5 {[%clk 0:02:37]}  g4 {[%clk 0:02:44]} 1/2-1/2


[Site "https://www.chess.com"]

[Event "Titled Tuesday Blitz January 03 Early 2023"]
[White "Jobava, Baadur"]
[Black "Jones, Gawain C B"]
[WhiteFideId "13601520"]
[BlackFideId "409561"]
[WhiteElo "2578"]
[BlackElo "2618"]
[Result "1/2-1/2"]
[Round "06"]
[TimeControl "180+2"]
[Date "2023.01.03"]
[WhiteClock "0:00:08"]
[BlackClock "0:00:09"]

1. e4 {[%clk 0:03:00]}  e5 {[%clk 0:02:57]} 2. Nf3 {[%clk 0:03:00]}  Nc6 {[%clk 0:02:58]} 3. d4 {[%clk 0:03:01]}  exd4 {[%clk 0:02:57]} 4. Nxd4 {[%clk 0:03:02]}  Nf6 {[%clk 0:02:58]} 5. Nxc6 {[%clk 0:03:02]}  bxc6 {[%clk 0:02:58]} 6. Bd3 {[%clk 0:03:03]}  d5 {[%clk 0:02:58]} 7. exd5 {[%clk 0:03:04]}  cxd5 {[%clk 0:02:58]} 8. O-O {[%clk 0:03:04]}  Be7 {[%clk 0:02:58]} 9. h3 {[%clk 0:03:05]}  O-O {[%clk 0:02:58]} 10. Nd2 {[%clk 0:03:06]}  Re8 {[%clk 0:02:57]} 11. Re1 {[%clk 0:03:06]}  a5 {[%clk 0:02:55]} 12. a4 {[%clk 0:03:06]}  Ba6 {[%clk 0:02:55]} 13. Nf3 {[%clk 0:02:59]}  Bxd3 {[%clk 0:02:48]} 14. Qxd3 {[%clk 0:03:00]}  Bb4 {[%clk 0:02:46]} 15. Rxe8+ {[%clk 0:02:58]}  Qxe8 {[%clk 0:02:47]} 16. Bg5 {[%clk 0:02:58]}  Qe4 {[%clk 0:02:29]} 17. Rd1 {[%clk 0:02:49]}  Be7 {[%clk 0:02:13]} 18. b3 {[%clk 0:02:14]}  Qxd3 {[%clk 0:02:00]} 19. Rxd3 {[%clk 0:02:15]}  c6 {[%clk 0:01:55]} 20. Nd4 {[%clk 0:02:05]}  Rc8 {[%clk 0:01:55]} 21. Nf5 {[%clk 0:02:05]}  Kf8 {[%clk 0:01:45]} 22. Re3 {[%clk 0:01:52]}  Bd8 {[%clk 0:01:44]} 23. Bf4 {[%clk 0:01:24]}  Bc7 {[%clk 0:01:38]} 24. Bg5 {[%clk 0:00:47]}  Bd8 {[%clk 0:01:14]} 25. Kf1 {[%clk 0:00:36]}  Ne4 {[%clk 0:01:06]} 26. Bxd8 {[%clk 0:00:36]}  Rxd8 {[%clk 0:01:07]} 27. f3 {[%clk 0:00:36]}  Nd6 {[%clk 0:00:59]} 28. Nxd6 {[%clk 0:00:29]}  Rxd6 {[%clk 0:00:59]} 29. Ke2 {[%clk 0:00:30]}  c5 {[%clk 0:00:48]} 30. Kd3 {[%clk 0:00:30]}  f6 {[%clk 0:00:48]} 31. g4 {[%clk 0:00:28]}  g5 {[%clk 0:00:45]} 32. f4 {[%clk 0:00:26]}  gxf4 {[%clk 0:00:45]} 33. Rf3 {[%clk 0:00:26]}  Ke7 {[%clk 0:00:39]} 34. Rxf4 {[%clk 0:00:27]}  Re6 {[%clk 0:00:40]} 35. Rf5 {[%clk 0:00:26]}  Kd6 {[%clk 0:00:34]} 36. Rh5 {[%clk 0:00:25]}  Re7 {[%clk 0:00:30]} 37. Rh6 {[%clk 0:00:25]}  Ke5 {[%clk 0:00:29]} 38. Rh5+ {[%clk 0:00:22]}  Kd6 {[%clk 0:00:29]} 39. Rf5 {[%clk 0:00:21]}  Re6 {[%clk 0:00:17]} 40. c3 {[%clk 0:00:21]}  Kc6 {[%clk 0:00:16]} 41. Rh5 {[%clk 0:00:21]}  Re1 {[%clk 0:00:09]} 42. Rxh7 {[%clk 0:00:18]}  Rd1+ {[%clk 0:00:08]} 43. Kc2 {[%clk 0:00:18]}  Rf1 {[%clk 0:00:08]} 44. Rh6 {[%clk 0:00:15]}  Kd7 {[%clk 0:00:09]} 45. h4 {[%clk 0:00:14]}  Rf2+ {[%clk 0:00:05]} 46. Kd3 {[%clk 0:00:14]}  Rf3+ {[%clk 0:00:06]} 47. Kd2 {[%clk 0:00:15]}  Ke7 {[%clk 0:00:05]} 48. g5 {[%clk 0:00:14]}  fxg5 {[%clk 0:00:04]} 49. hxg5 {[%clk 0:00:15]}  Rf2+ {[%clk 0:00:03]} 50. Kd3 {[%clk 0:00:14]}  Rf3+ {[%clk 0:00:03]} 51. Kd2 {[%clk 0:00:14]}  Rf2+ {[%clk 0:00:03]} 52. Ke3 {[%clk 0:00:14]}  Rc2 {[%clk 0:00:03]} 53. Kd3 {[%clk 0:00:14]}  Rb2 {[%clk 0:00:04]} 54. Rb6 {[%clk 0:00:13]}  c4+ {[%clk 0:00:04]} 55. Kd4 {[%clk 0:00:14]}  cxb3 {[%clk 0:00:04]} 56. Kxd5 {[%clk 0:00:13]}  Rg2 {[%clk 0:00:03]} 57. Rxb3 {[%clk 0:00:13]}  Rxg5+ {[%clk 0:00:03]} 58. Kc6 {[%clk 0:00:13]}  Rg4 {[%clk 0:00:03]} 59. Kb5 {[%clk 0:00:12]}  Kd6 {[%clk 0:00:03]} 60. Kxa5 {[%clk 0:00:12]}  Kc5 {[%clk 0:00:03]} 61. Rb5+ {[%clk 0:00:11]}  Kc6 {[%clk 0:00:04]} 62. Rb4 {[%clk 0:00:11]}  Rg3 {[%clk 0:00:04]} 63. Rb3 {[%clk 0:00:10]}  Kc5 {[%clk 0:00:03]} 64. Ka6 {[%clk 0:00:08]}  Rg6+ {[%clk 0:00:03]} 65. Ka7 {[%clk 0:00:08]}  Rg7+ {[%clk 0:00:03]} 66. Rb7 {[%clk 0:00:08]}  Rg3 {[%clk 0:00:03]} 67. a5 {[%clk 0:00:08]}  Rg6 {[%clk 0:00:04]} 68. a6 {[%clk 0:00:08]}  Rh6 {[%clk 0:00:04]} 69. Rc7+ {[%clk 0:00:06]}  Kb5 {[%clk 0:00:04]} 70. c4+ {[%clk 0:00:07]}  Ka5 {[%clk 0:00:04]} 71. Rc5+ {[%clk 0:00:07]}  Kb4 {[%clk 0:00:05]} 72. Rc8 {[%clk 0:00:07]}  Ka5 {[%clk 0:00:05]} 73. Rc5+ {[%clk 0:00:07]}  Kb4 {[%clk 0:00:05]} 74. Rg5 {[%clk 0:00:07]}  Kxc4 {[%clk 0:00:05]} 75. Rg7 {[%clk 0:00:04]}  Kb5 {[%clk 0:00:05]} 76. Rb7+ {[%clk 0:00:04]}  Ka5 {[%clk 0:00:05]} 77. Rb1 {[%clk 0:00:04]}  Rxa6+ {[%clk 0:00:05]} 78. Kb7 {[%clk 0:00:05]}  Rh6 {[%clk 0:00:06]} 79. Ra1+ {[%clk 0:00:05]}  Kb5 {[%clk 0:00:07]} 80. Rb1+ {[%clk 0:00:06]}  Kc5 {[%clk 0:00:07]} 81. Rc1+ {[%clk 0:00:06]}  Kb5 {[%clk 0:00:08]} 82. Rb1+ {[%clk 0:00:07]}  Kc5 {[%clk 0:00:08]} 83. Rc1+ {[%clk 0:00:08]}  Kb5 {[%clk 0:00:09]} 84. Rb1+ {[%clk 0:00:08]} 1/2-1/2


[Site "https://www.chess.com"]